fUSD/lending_fUSD_20250622
["ID","MTS","AMOUNT","RATE_DAILY","PERIOD"]
[366914590,1750569044324,-490.0,0.00019178,2]
[366914591,1750569044335,-490.0,0.00019178,2]
[366914592,1750569044345,-490.0,0.00019178,2]
[366914593,1750569044355,-1116.94,0.00019178,2]
[366914594,1750569044365,-490.0,0.00019178,2]
[366914595,1750569044377,-878.33,0.00019178,2]
[366914596,1750569044387,-490.0,0.00019178,2]
[366914597,1750569044397,-867.51,0.00019178,2]
[366914598,1750569044407,-1099.43,0.00019178,2]
[366914599,1750569044417,-577.17,0.00019178,2]
[366914600,1750569044428,-2212.51,0.00019178,2]
[366914601,1750569044441,-490.0,0.00019178,2]
[366914602,1750569044451,-490.0,0.00019178,2]
[366914603,1750569044461,-2735.01,0.00019178,2]
[366914604,1750569044472,-1180.53,0.00019178,2]
[366914605,1750569044482,-490.0,0.00019178,2]
[366914606,1750569044492,-490.0,0.00019178,2]
[366914607,1750569044503,-490.0,0.00019178,2]
[366914608,1750569044514,-1640.43,0.00019178,2]
[366914609,1750569044524,-490.0,0.00019178,2]
[366914610,1750569044533,-490.0,0.00019178,2]
[366914611,1750569044543,-544.29,0.00019178,2]
[366914612,1750569044554,-1021.75,0.00019178,2]
[366914613,1750569044563,-490.0,0.00019178,2]
[366914614,1750569044573,-490.0,0.00019178,2]
[366914615,1750569044584,-1624.32,0.00019178,2]
[366914616,1750569044594,-724.5,0.00019178,2]
[366914617,1750569044604,-522.81,0.00019178,2]
[366914618,1750569044615,-490.0,0.00019178,2]
[366914619,1750569044625,-490.0,0.00019178,2]
[366914620,1750569044635,-490.0,0.00019178,2]
[366914621,1750569044644,-1106.81,0.00019178,2]
[366914622,1750569044654,-674.21,0.00019178,2]
[366914623,1750569044664,-212.4372612,0.00019178,2]
[366914624,1750569044674,-490.0,0.00019178,2]
[366914625,1750569044684,-594.97,0.00019178,2]
[366914626,1750569044694,-490.0,0.00019178,2]
[366914627,1750569044704,-1119.29,0.00019178,2]
[366914628,1750569044714,-1061.7,0.00019178,2]
[366914629,1750569044724,-2113.91,0.00019178,2]
[366914630,1750569044734,-490.0,0.00019178,2]
[366914631,1750569044744,-490.0,0.00019178,2]
[366914632,1750569044754,-490.0,0.00019178,2]
[366914633,1750569044764,-490.0,0.00019178,2]
[366914634,1750569044774,-490.0,0.00019178,2]
[366914635,1750569044785,-490.0,0.00019178,2]
[366914636,1750569044795,-492.10873076,0.00019178,2]
[366914637,1750569044806,-490.0,0.00019178,2]
[366914638,1750569044816,-1674.07,0.00019178,2]
[366914639,1750569044826,-490.0,0.00019178,2]
[366914640,1750569044837,-490.0,0.00019178,2]
[366914641,1750569044847,-1302.42,0.00019178,2]
[366914642,1750569044857,-490.0,0.00019178,2]
[366914643,1750569044867,-490.0,0.00019178,2]
[366914644,1750569044877,-490.0,0.00019178,2]
[366914645,1750569044886,-490.0,0.00019178,2]
[366914646,1750569044896,-2610.29,0.00019178,2]
[366914647,1750569044907,-490.0,0.00019178,2]
[366914648,1750569044917,-2511.45,0.00019178,2]
[366914649,1750569044928,-490.0,0.00019178,2]
[366914650,1750569044938,-1512.68,0.00019178,2]
[366914651,1750569044948,-490.0,0.00019178,2]
[366914652,1750569044958,-543.54,0.00019178,2]
[366914653,1750569044969,-490.0,0.00019178,2]
[366914654,1750569044979,-490.0,0.00019178,2]
[366914655,1750569044989,-490.0,0.00019178,2]
[366914656,1750569044999,-490.0,0.00019178,2]
[366914657,1750569045009,-361.16697376,0.00019178,2]
[366914658,1750569045020,-490.0,0.00019178,2]
[366914659,1750569045030,-490.0,0.00019178,2]
[366914660,1750569045041,-490.0,0.00019178,2]
[366914661,1750569045051,-701.04,0.00019178,2]
[366914662,1750569045062,-661.57,0.00019178,2]
[366914663,1750569045072,-956.09,0.00019178,2]
[366914664,1750569045083,-1145.14,0.00019178,2]
[366914665,1750569045094,-490.0,0.00019178,2]
[366914666,1750569045104,-2035.52,0.00019178,2]
[366914667,1750569045115,-1487.68,0.00019178,2]
[366914668,1750569045125,-490.0,0.00019178,2]
[366914669,1750569045136,-616.18,0.00019178,2]
[366914670,1750569045147,-490.0,0.00019178,2]
[366914671,1750569045157,-490.0,0.00019178,2]
[366914672,1750569045168,-490.0,0.00019178,2]
[366914673,1750569045179,-490.0,0.00019178,2]
[366914674,1750569045192,-490.0,0.00019178,2]
[366914675,1750569045202,-490.0,0.00019178,2]
[366914676,1750569045212,-490.0,0.00019178,2]
[366914677,1750569045221,-490.0,0.00019178,2]
[366914678,1750569045231,-1522.15,0.00019178,2]
[366914679,1750569045242,-799.53,0.00019178,2]
[366914680,1750569045252,-490.0,0.00019178,2]
[366914681,1750569045262,-490.0,0.00019178,2]
[366914682,1750569045272,-490.0,0.00019178,2]
[366914683,1750569045283,-1635.89,0.00019178,2]
[366914684,1750569045293,-490.0,0.00019178,2]
[366914685,1750569045303,-2739.26,0.00019178,2]
[366914686,1750569045314,-490.0,0.00019178,2]
[366914687,1750569045325,-490.0,0.00019178,2]
[366914688,1750569045335,-490.0,0.00019178,2]
[366914689,1750569045346,-2019.51,0.00019178,2]
[366914690,1750569045357,-1958.22,0.00019178,2]
[366914691,1750569045368,-490.0,0.00019178,2]
[366914692,1750569045378,-490.0,0.00019178,2]
[366914693,1750569045388,-1645.41,0.00019178,2]
[366914694,1750569045398,-490.0,0.00019178,2]
[366914695,1750569045407,-722.15,0.00019178,2]
[366914696,1750569045418,-490.0,0.00019178,2]
[366914697,1750569045429,-490.0,0.00019178,2]
[366914698,1750569045442,-490.0,0.00019178,2]
[366914699,1750569045452,-491.22793244,0.00019178,2]
[366914700,1750569045463,-490.0,0.00019178,2]
[366914701,1750569045475,-490.0,0.00019178,2]
[366914702,1750569045484,-490.0,0.00019178,2]
[366914703,1750569045494,-490.0,0.00019178,2]
[366914704,1750569045505,-1328.23,0.00019178,2]
[366914705,1750569045517,-1317.37,0.00019178,2]
[366914707,1750569045527,-490.0,0.00019178,2]
[366914708,1750569045538,-1317.86,0.00019178,2]
[366914709,1750569045548,-490.0,0.00019178,2]
[366914710,1750569045558,-490.0,0.00019178,2]
[366914711,1750569045569,-490.0,0.00019178,2]
[366914712,1750569045581,-1652.88,0.00019178,2]
[366914713,1750569045591,-1332.99,0.00019178,2]
[366914714,1750569045601,-490.99207317,0.00019178,2]
[366914715,1750569045612,-490.0,0.00019178,2]
[366914716,1750569045623,-1906.85,0.00019178,2]
[366914717,1750569045632,-490.0,0.00019178,2]
[366914718,1750569045643,-490.0,0.00019178,2]
[366914719,1750569045653,-1917.68,0.00019178,2]
[366914720,1750569045663,-1118.79,0.00019178,2]
[366914721,1750569045673,-500.0,0.00019178,2]
[366914722,1750569045684,-500.0,0.00019178,2]
[366914723,1750569045694,-500.0,0.00019178,2]
[366914724,1750569045704,-500.0,0.00019178,2]
[366914725,1750569045715,-490.0,0.00019178,2]
[366914726,1750569045725,-490.0,0.00019178,2]
[366914727,1750569045735,-500.0,0.00019178,2]
[366914728,1750569045745,-500.0,0.00019178,2]
[366914729,1750569045755,-500.0,0.00019178,2]
[366914730,1750569045765,-490.0,0.00019178,2]
[366914731,1750569045775,-2801.32,0.00019178,2]
[366914732,1750569045786,-490.0,0.00019178,2]
[366914733,1750569045797,-490.0,0.00019178,2]
[366914734,1750569045807,-490.0,0.00019178,2]
[366914735,1750569045818,-490.0,0.00019178,2]
[366914736,1750569045828,-947.16,0.00019178,2]
[366914737,1750569045839,-490.0,0.00019178,2]
[366914738,1750569045849,-490.0,0.00019178,2]
[366914739,1750569045859,-1854.16,0.00019178,2]
[366914740,1750569045870,-490.0,0.00019178,2]
[366914741,1750569045880,-490.0,0.00019178,2]
[366914742,1750569045891,-492.47857556,0.00019178,2]
[366914743,1750569045901,-1671.47,0.00019178,2]
[366914744,1750569045911,-1297.88,0.00019178,2]
[366914745,1750569045920,-440.40698836,0.00019178,2]
[366914746,1750569045930,-1226.83,0.00019178,2]
[366914747,1750569045940,-490.0,0.00019178,2]
[366914748,1750569045951,-490.0,0.00019178,2]
[366914749,1750569045960,-490.0,0.00019178,2]
[366914750,1750569045971,-490.0,0.00019178,2]
[366914751,1750569045982,-490.0,0.00019178,2]
[366914752,1750569045992,-341.54150293,0.00019178,2]
[366914754,1750569046004,-490.0,0.00019178,2]
[366914756,1750569046014,-490.0,0.00019178,2]
[366914758,1750569046024,-490.0,0.00019178,2]
[366914760,1750569046034,-1320.39,0.00019178,2]
[366914762,1750569046044,-490.0,0.00019178,2]
[366914764,1750569046054,-483.98342654,0.00019178,2]
[366914766,1750569046064,-490.0,0.00019178,2]
[366914769,1750569046074,-490.0,0.00019178,2]
[366914771,1750569046084,-494.6993341,0.00019178,2]
[366914773,1750569046095,-1687.03,0.00019178,2]
[366914775,1750569046106,-490.0,0.00019178,2]
[366914777,1750569046116,-1935.54,0.00019178,2]
[366914779,1750569046126,-1835.22,0.00019178,2]
[366914781,1750569046136,-490.0,0.00019178,2]
[366914783,1750569046146,-490.0,0.00019178,2]
[366914785,1750569046156,-490.0,0.00019178,2]
[366914787,1750569046166,-490.0,0.00019178,2]
[366914789,1750569046176,-490.0,0.00019178,2]
[366914791,1750569046186,-490.0,0.00019178,2]
[366914793,1750569046197,-490.0,0.00019178,2]
[366914795,1750569046207,-490.0,0.00019178,2]
[366914797,1750569046218,-490.0,0.00019178,2]
[366914800,1750569046228,-1533.91,0.00019178,2]
[366914802,1750569046239,-494.41323582,0.00019178,2]
[366914804,1750569046249,-490.0,0.00019178,2]
[366914806,1750569046259,-490.0,0.00019178,2]
[366914807,1750569046270,-1029.79,0.00019178,2]
[366914808,1750569046281,-549.12,0.00019178,2]
[366914834,1750569046607,-3872.17,0.00019178,2]
[366914837,1750569046620,-490.0,0.00019178,2]
[366914839,1750569046630,-1073.05,0.00019178,2]
[366914841,1750569046640,-490.0,0.00019178,2]
[366914843,1750569046650,-490.0,0.00019178,2]
[366914845,1750569046660,-494.9181674,0.00019178,2]
[366914847,1750569046670,-650.59,0.00019178,2]
[366914849,1750569046679,-490.0,0.00019178,2]
[366914851,1750569046689,-490.0,0.00019178,2]
[366914853,1750569046699,-543.35475787,0.00019178,2]
[366914855,1750569046708,-890.12,0.00019178,2]
[366914857,1750569046718,-890.12,0.00019178,2]
[366914859,1750569046727,-890.12,0.00019178,2]
[366914861,1750569046738,-890.12,0.00019178,2]
[366914863,1750569046748,-490.0,0.00019178,2]
[366914865,1750569046758,-1315.43,0.00019178,2]
[366914867,1750569046768,-833.95,0.00019178,2]
[366914869,1750569046778,-1900.31,0.00019178,2]
[366914871,1750569046787,-494.09980186,0.00019178,2]
[366914873,1750569046798,-567.09,0.00019178,2]
[366914875,1750569046808,-490.0,0.00019178,2]
[366914877,1750569046817,-1563.51,0.00019178,2]
[366914879,1750569046827,-563.18,0.00019178,2]
[366914881,1750569046837,-490.0,0.00019178,2]
[366914883,1750569046847,-490.0,0.00019178,2]
[366914885,1750569046856,-490.0,0.00019178,2]
[366914887,1750569046866,-490.0,0.00019178,2]
[366914889,1750569046875,-890.12,0.00019178,2]
[366914891,1750569046887,-890.12,0.00019178,2]
[366914893,1750569046897,-890.12,0.00019178,2]
[366914895,1750569046907,-1065.71,0.00019178,2]
[366914897,1750569046916,-490.0,0.00019178,2]
[366914899,1750569046926,-490.0,0.00019178,2]
[366914901,1750569046936,-907.55,0.00019178,2]
[366914903,1750569046945,-490.0,0.00019178,2]
[366914905,1750569046955,-490.0,0.00019178,2]
[366914907,1750569046964,-493.11115985,0.00019178,2]
[366914909,1750569046974,-490.0,0.00019178,2]
[366914911,1750569046983,-490.0,0.00019178,2]
[366914913,1750569046993,-490.0,0.00019178,2]
[366914915,1750569047002,-1298.75,0.00019178,2]
[366914917,1750569047013,-490.0,0.00019178,2]
[366914919,1750569047023,-490.0,0.00019178,2]
[366914921,1750569047033,-490.0,0.00019178,2]
[366914923,1750569047043,-1392.78,0.00019178,2]
[366914925,1750569047053,-490.0,0.00019178,2]
[366914927,1750569047063,-490.0,0.00019178,2]
[366914929,1750569047074,-1645.36,0.00019178,2]
[366914931,1750569047084,-1038.9,0.00019178,2]
[366914933,1750569047094,-490.0,0.00019178,2]
[366914935,1750569047104,-490.0,0.00019178,2]
[366914937,1750569047115,-748.88,0.00019178,2]
[366914939,1750569047125,-833.48,0.00019178,2]
[366914941,1750569047134,-490.0,0.00019178,2]
[366914943,1750569047145,-490.0,0.00019178,2]
[366914945,1750569047155,-490.0,0.00019178,2]
[366914947,1750569047165,-562.77,0.00019178,2]
[366914949,1750569047174,-1087.26,0.00019178,2]
[366914952,1750569047184,-490.0,0.00019178,2]
[366914954,1750569047195,-490.0,0.00019178,2]
[366914956,1750569047204,-490.0,0.00019178,2]
[366914958,1750569047214,-490.0,0.00019178,2]
[366914960,1750569047224,-490.0,0.00019178,2]
[366914962,1750569047234,-490.0,0.00019178,2]
[366914963,1750569047243,-490.0,0.00019178,2]
[366914965,1750569047253,-536.01703518,0.00019178,2]
[366914967,1750569047262,-490.0,0.00019178,2]
[366914970,1750569047274,-490.0,0.00019178,2]
[366914972,1750569047284,-940.33,0.00019178,2]
[366914974,1750569047294,-1859.54,0.00019178,2]
[366914976,1750569047303,-813.92,0.00019178,2]
[366914978,1750569047312,-490.0,0.00019178,2]
[366914980,1750569047322,-490.0,0.00019178,2]
[366914982,1750569047332,-490.0,0.00019178,2]
[366914984,1750569047341,-490.0,0.00019178,2]
[366914986,1750569047351,-490.0,0.00019178,2]
[366914988,1750569047361,-490.0,0.00019178,2]
[366914990,1750569047370,-1776.35,0.00019178,2]
[366914992,1750569047380,-490.0,0.00019178,2]
[366914994,1750569047391,-2093.54,0.00019178,2]
[366914996,1750569047400,-490.0,0.00019178,2]
[366914998,1750569047410,-490.0,0.00019178,2]
[366915000,1750569047420,-490.0,0.00019178,2]
[366915002,1750569047430,-1968.04,0.00019178,2]
[366915004,1750569047443,-2597.97,0.00019178,2]
[366915006,1750569047452,-492.5442619,0.00019178,2]
[366915008,1750569047462,-490.0,0.00019178,2]
[366915010,1750569047471,-490.0,0.00019178,2]
[366915012,1750569047482,-490.0,0.00019178,2]
[366915014,1750569047492,-491.85684545,0.00019178,2]
[366915016,1750569047502,-500.0,0.00019178,2]
[366915018,1750569047514,-977.31,0.00019178,2]
[366915020,1750569047526,-490.0,0.00019178,2]
[366915022,1750569047536,-500.0,0.00019178,2]
[366915024,1750569047545,-500.0,0.00019178,2]
[366915026,1750569047554,-490.0,0.00019178,2]
[366915028,1750569047563,-1376.38,0.00019178,2]
[366915030,1750569047574,-490.0,0.00019178,2]
[366915032,1750569047584,-490.0,0.00019178,2]
[366915035,1750569047594,-830.0,0.00019178,2]
[366915037,1750569047603,-490.0,0.00019178,2]
[366915039,1750569047613,-490.0,0.00019178,2]
[366915041,1750569047623,-490.0,0.00019178,2]
[366915043,1750569047633,-342.50477409,0.00019178,2]
[366915045,1750569047644,-1972.29,0.00019178,2]
[366915047,1750569047653,-490.0,0.00019178,2]
[366915049,1750569047663,-360.21472829,0.00019178,2]
[366915051,1750569047672,-736.81,0.00019178,2]
[366915053,1750569047682,-490.0,0.00019178,2]
[366915055,1750569047692,-865.69,0.00019178,2]
[366915057,1750569047701,-494.82736737,0.00019178,2]
[366915059,1750569047711,-490.0,0.00019178,2]
[366915061,1750569047721,-490.0,0.00019178,2]
[366915063,1750569047730,-768.48,0.00019178,2]
[366915065,1750569047740,-499.08138629,0.00019178,2]
[366915067,1750569047750,-2136.09,0.00019178,2]
[366915069,1750569047760,-490.0,0.00019178,2]
[366915071,1750569047769,-1667.69,0.00019178,2]
[366915073,1750569047779,-490.0,0.00019178,2]
[366915075,1750569047788,-733.88,0.00019178,2]
[366915077,1750569047797,-490.0,0.00019178,2]
[366915079,1750569047807,-490.0,0.00019178,2]
[366915081,1750569047817,-490.0,0.00019178,2]
[366915083,1750569047827,-490.0,0.00019178,2]
[366915085,1750569047837,-490.0,0.00019178,2]
[366915087,1750569047847,-490.0,0.00019178,2]
[366915089,1750569047857,-1449.85,0.00019178,2]
[366915091,1750569047866,-490.0,0.00019178,2]
[366915093,1750569047876,-558.38,0.00019178,2]
[366915095,1750569047885,-490.0,0.00019178,2]
[366915097,1750569047896,-490.0,0.00019178,2]
[366915099,1750569047905,-490.0,0.00019178,2]
[366915101,1750569047915,-490.0,0.00019178,2]
[366915103,1750569047924,-490.0,0.00019178,2]
[366915105,1750569047934,-490.0,0.00019178,2]
[366915107,1750569047943,-490.55379806,0.00019178,2]
[366915109,1750569047953,-2566.09,0.00019178,2]
[366915112,1750569047965,-2886.39,0.00019178,2]
[366915114,1750569047975,-490.0,0.00019178,2]
[366915116,1750569047984,-490.0,0.00019178,2]
[366915118,1750569047994,-534.72,0.00019178,2]
[366915120,1750569048004,-534.72,0.00019178,2]
[366915122,1750569048015,-490.0,0.00019178,2]
[366915124,1750569048026,-534.72,0.00019178,2]
[366915126,1750569048036,-534.72,0.00019178,2]
[366915128,1750569048047,-534.72,0.00019178,2]
[366915130,1750569048057,-2836.7,0.00019178,2]
[366915132,1750569048067,-1199.42,0.00019178,2]
[366915134,1750569048077,-534.72,0.00019178,2]
[366915136,1750569048089,-534.72,0.00019178,2]
[366915138,1750569048098,-490.0,0.00019178,2]
[366915140,1750569048108,-490.0,0.00019178,2]
[366915142,1750569048118,-497.21,0.00019178,2]
[366915144,1750569048128,-2402.5,0.00019178,2]
[366915146,1750569048138,-1363.63,0.00019178,2]
[366915148,1750569048148,-490.0,0.00019178,2]
[366915150,1750569048158,-490.0,0.00019178,2]
[366915152,1750569048167,-490.0,0.00019178,2]
[366915154,1750569048177,-490.0,0.00019178,2]
[366915156,1750569048187,-1797.2,0.00019178,2]
[366915158,1750569048198,-490.0,0.00019178,2]
[366915160,1750569048208,-1101.12,0.00019178,2]
[366915162,1750569048217,-490.0,0.00019178,2]
[366915164,1750569048227,-490.0,0.00019178,2]
[366915166,1750569048237,-490.0,0.00019178,2]
[366915168,1750569048247,-733.94,0.00019178,2]
[366915171,1750569048261,-948.07,0.00019178,2]
[366915173,1750569048270,-490.0,0.00019178,2]
[366915175,1750569048280,-490.0,0.00019178,2]
[366915177,1750569048290,-1527.81,0.00019178,2]
[366915179,1750569048300,-1056.47,0.00019178,2]
[366915181,1750569048310,-981.21,0.00019178,2]
[366915183,1750569048319,-1534.97,0.00019178,2]
[366915184,1750569048329,-537.69312003,0.00019178,2]
[366915186,1750569048339,-490.0,0.00019178,2]
[366915188,1750569048349,-490.0,0.00019178,2]
[366915190,1750569048359,-843.96,0.00019178,2]
[366915192,1750569048369,-490.0,0.00019178,2]
[366915194,1750569048379,-3196.76,0.00019178,2]
[366915196,1750569048391,-490.0,0.00019178,2]
[366915199,1750569048402,-490.0,0.00019178,2]
[366915201,1750569048412,-554.73,0.00019178,2]
[366915202,1750569048423,-490.0,0.00019178,2]
[366915205,1750569048433,-724.85,0.00019178,2]
[366915206,1750569048447,-490.0,0.00019178,2]
[366915208,1750569048458,-490.0,0.00019178,2]
[366915209,1750569048468,-928.51,0.00019178,2]
[366915210,1750569048479,-490.0,0.00019178,2]
[366915211,1750569048489,-490.0,0.00019178,2]
[366915212,1750569048499,-516.11981407,0.00019178,2]
[366915213,1750569048510,-490.0,0.00019178,2]
[366915214,1750569048521,-853.74,0.00019178,2]
[366915215,1750569048532,-490.0,0.00019178,2]
[366915216,1750569048542,-490.0,0.00019178,2]
[366915217,1750569048553,-1565.15,0.00019178,2]
[366915218,1750569048563,-838.52,0.00019178,2]
[366915219,1750569048574,-490.0,0.00019178,2]
[366915220,1750569048584,-490.0,0.00019178,2]
[366915221,1750569048594,-659.72,0.00019178,2]
[366915222,1750569048604,-1388.26,0.00019178,2]
[366915223,1750569048614,-533.35,0.00019178,2]
[366915224,1750569048625,-490.0,0.00019178,2]
[366915225,1750569048635,-490.0,0.00019178,2]
[366915226,1750569048646,-592.57478803,0.00019178,2]
[366915227,1750569048657,-490.0,0.00019178,2]
[366915228,1750569048667,-490.0,0.00019178,2]
[366915229,1750569048677,-490.0,0.00019178,2]
[366915230,1750569048688,-490.0,0.00019178,2]
[366915231,1750569048698,-490.0,0.00019178,2]
[366915232,1750569048708,-490.0,0.00019178,2]
[366915233,1750569048719,-490.0,0.00019178,2]
[366915234,1750569048729,-1252.39,0.00019178,2]
[366915235,1750569048739,-675.89,0.00019178,2]
[366915236,1750569048749,-490.0,0.00019178,2]
[366915237,1750569048758,-2133.27,0.00019178,2]
[366915238,1750569048769,-490.0,0.00019178,2]
[366915239,1750569048779,-676.04,0.00019178,2]
[366915240,1750569048789,-490.0,0.00019178,2]
[366915241,1750569048799,-490.0,0.00019178,2]
[366915242,1750569048808,-490.0,0.00019178,2]
[366915243,1750569048818,-1760.16,0.00019178,2]
[366915244,1750569048828,-860.04,0.00019178,2]
[366915245,1750569048838,-1100.5,0.00019178,2]
[366915246,1750569048849,-10887.67,0.00019178,2]
[366915247,1750569048859,-985.31,0.00019178,2]
[366915248,1750569048870,-490.0,0.00019178,2]
[366915249,1750569048879,-4089.06,0.00019178,2]
[366915250,1750569048890,-4015.64,0.00019178,2]
[366915251,1750569048900,-473.27193782,0.00019178,2]
[366915252,1750569048911,-490.0,0.00019178,2]
[366915253,1750569048921,-490.0,0.00019178,2]
[366915254,1750569048932,-490.0,0.00019178,2]
[366915255,1750569048942,-490.0,0.00019178,2]
[366915256,1750569048953,-490.0,0.00019178,2]
[366915257,1750569048969,-728.9,0.00019178,2]
[366915258,1750569048979,-490.0,0.00019178,2]
[366915259,1750569048990,-490.0,0.00019178,2]
[366915260,1750569049086,-535.27,0.00019178,2]
[366915261,1750569049095,-490.0,0.00019178,2]
[366915262,1750569049106,-490.0,0.00019178,2]
[366915263,1750569049115,-989.78,0.00019178,2]
[366915264,1750569049125,-490.0,0.00019178,2]
[366915265,1750569049135,-490.0,0.00019178,2]
[366915266,1750569049145,-490.0,0.00019178,2]
[366915267,1750569049155,-678.55,0.00019178,2]
[366915268,1750569049164,-3602.7,0.00019178,2]
[366915269,1750569049173,-490.0,0.00019178,2]
[366915270,1750569049183,-1464.86,0.00019178,2]
[366915271,1750569049193,-1006.33,0.00019178,2]
[366915272,1750569049203,-595.98099445,0.00019178,2]
[366915273,1750569049212,-2380.95,0.00019178,2]
[366915274,1750569049222,-221.05826938,0.00019178,2]
[366915275,1750569049231,-490.0,0.00019178,2]
[366915276,1750569049241,-1105.1,0.00019178,2]
[366915277,1750569049251,-490.0,0.00019178,2]
[366915278,1750569049261,-490.0,0.00019178,2]
[366915279,1750569049271,-500.95,0.00019178,2]
[366915280,1750569049281,-498.65,0.00019178,2]
[366915281,1750569049291,-490.0,0.00019178,2]
[366915282,1750569049300,-490.0,0.00019178,2]
[366915283,1750569049309,-500.0,0.00019178,2]
[366915284,1750569049319,-552.98944465,0.00019178,2]
[366915285,1750569049329,-150.0,0.00019178,2]
[366915286,1750569049339,-1344.98,0.00019178,2]
[366915287,1750569049350,-1303.83,0.00019178,2]
[366915288,1750569049360,-1389.93,0.00019178,2]
[366915289,1750569049371,-2290.69,0.00019178,2]
[366915290,1750569049381,-490.0,0.00019178,2]
[366915291,1750569049391,-3439.06,0.00019178,2]
[366915292,1750569049400,-490.0,0.00019178,2]
[366915293,1750569049410,-490.0,0.00019178,2]
[366915294,1750569049421,-490.0,0.00019178,2]
[366915295,1750569049431,-490.0,0.00019178,2]
[366915296,1750569049442,-2206.73,0.00019178,2]
[366915297,1750569049453,-992.62,0.00019178,2]
[366915298,1750569049462,-490.0,0.00019178,2]
[366915299,1750569049471,-490.0,0.00019178,2]
[366915300,1750569049482,-490.0,0.00019178,2]
[366915301,1750569049492,-150.0,0.00019178,2]
[366915302,1750569049502,-664.51,0.00019178,2]
[366915303,1750569049511,-490.0,0.00019178,2]
[366915304,1750569049524,-2378.71,0.00019178,2]
[366915305,1750569049534,-150.0,0.00019178,2]
[366915306,1750569049543,-451.99,0.00019178,2]
[366915307,1750569049553,-622.67,0.00019178,2]
[366915308,1750569049563,-150.0,0.00019178,2]
[366915309,1750569049573,-490.0,0.00019178,2]
[366915310,1750569049583,-490.0,0.00019178,2]
[366915311,1750569049594,-1482.37,0.00019178,2]
[366915312,1750569049603,-1746.08,0.00019178,2]
[366915313,1750569049613,-2111.1,0.00019178,2]
[366915314,1750569049622,-490.0,0.00019178,2]
[366915315,1750569049632,-490.0,0.00019178,2]
[366915316,1750569049643,-490.0,0.00019178,2]
[366915317,1750569049653,-500.84336773,0.00019178,2]
[366915318,1750569049663,-490.0,0.00019178,2]
[366915319,1750569049672,-490.0,0.00019178,2]
[366915320,1750569049682,-4032.82,0.00019178,2]
[366915321,1750569049691,-490.0,0.00019178,2]
[366915322,1750569049701,-983.76,0.00019178,2]
[366915323,1750569049711,-1527.37,0.00019178,2]
[366915324,1750569049721,-490.0,0.00019178,2]
[366915325,1750569049731,-490.0,0.00019178,2]
[366915326,1750569049739,-696.61,0.00019178,2]
[366915327,1750569049749,-150.0,0.00019178,2]
[366915328,1750569049759,-1654.85,0.00019178,2]
[366915329,1750569049773,-150.0,0.00019178,2]
[366915330,1750569049783,-490.0,0.00019178,2]
[366915331,1750569049792,-912.2,0.00019178,2]
[366915332,1750569049802,-490.0,0.00019178,2]